fUST/lending_fUST_20240211
["ID","MTS","AMOUNT","RATE_DAILY","PERIOD"]
[313740618,1707652243942,-500.0,0.00019178,2]
[313740619,1707652243951,-6895.8,0.00019178,2]
[313740620,1707652243960,-1638.76,0.00019178,2]
[313740621,1707652243968,-1825.56,0.00019178,2]
[313740622,1707652243978,-500.0,0.00019178,2]
[313740623,1707652243987,-997.97,0.00019178,2]
[313740624,1707652243996,-14695.71,0.00019178,2]
[313740625,1707652244005,-1403.2,0.00019178,2]
[313740626,1707652244013,-500.0,0.00019178,2]
[313740627,1707652244022,-1710.53,0.00019178,2]
[313740628,1707652244033,-500.0,0.00019178,2]
[313740629,1707652244043,-500.0,0.00019178,2]
[313740630,1707652244053,-6662.75,0.00019178,2]
[313740631,1707652244062,-843.64,0.00019178,2]
[313740632,1707652244071,-7784.65,0.00019178,2]
[313740633,1707652244080,-904.49,0.00019178,2]
[313740634,1707652244090,-500.0,0.00019178,2]
[313740635,1707652244099,-782.31,0.00019178,2]
[313740636,1707652244109,-500.0,0.00019178,2]
[313740637,1707652244118,-1084.04,0.00019178,2]
[313740638,1707652244127,-820.86,0.00019178,2]
[313740639,1707652244138,-6792.0,0.00019178,2]
[313740640,1707652244148,-1570.5,0.00019178,2]
[313740641,1707652244158,-500.0,0.00019178,2]
[313740642,1707652244167,-4328.91,0.00019178,2]
[313740643,1707652244177,-6570.01,0.00019178,2]
[313740644,1707652244186,-500.0,0.00019178,2]
[313740645,1707652244195,-1104.7,0.00019178,2]
[313740646,1707652244204,-5570.14,0.00019178,2]
[313740647,1707652244213,-500.0,0.00019178,2]
[313740648,1707652244222,-500.0,0.00019178,2]
[313740649,1707652244231,-1799.62,0.00019178,2]
[313740650,1707652244240,-784.51,0.00019178,2]
[313740651,1707652244249,-721.69,0.00019178,2]
[313740652,1707652244258,-500.0,0.00019178,2]
[313740653,1707652244268,-1633.38,0.00019178,2]
[313740654,1707652244277,-846.83,0.00019178,2]
[313740655,1707652244286,-500.0,0.00019178,2]
[313740656,1707652244295,-169.96751,0.00019178,2]
[313740657,1707652244306,-168.236473,0.00019178,2]
[313740658,1707652244315,-168.9729248,0.00019178,2]
[313740659,1707652244325,-169.025814,0.00019178,2]
[313740660,1707652244337,-1000.0,0.000192,20]
[313740661,1707652244349,-1297.66046519,0.0001935,2]
[313740662,1707652244358,-264.83014184,0.0001935,2]
[313740663,1707652244367,-280.0,0.00019425,2]
[313740664,1707652244375,-160.18585955,0.00019449,2]
[313740665,1707652244387,-155.76286218,0.0001945,2]
[313740666,1707652244397,-195.89377679,0.0001945,2]
[313740667,1707652244406,-155.22580866,0.0001945,2]
[313740668,1707652244417,-155.3722912,0.0001945,2]
[313740669,1707652244427,-202.35317468,0.0001945,2]
[313740670,1707652244436,-167.43465152,0.0001945,2]
[313740671,1707652244449,-720.44260141,0.00019451,2]
[313740672,1707652244461,-298.10212855,0.00019451,2]
[313740673,1707652244474,-500.0,0.00019452,2]
[313740674,1707652244486,-629.51,0.00019452,2]
[313740675,1707652244499,-500.0,0.00019452,2]
[313740676,1707652244511,-500.0,0.00019452,2]
[313740677,1707652244522,-500.0,0.00019452,2]
[313740678,1707652244532,-500.0,0.00019452,2]
[313740679,1707652244543,-500.0,0.00019452,2]
[313740680,1707652244555,-500.0,0.00019452,2]
[313740681,1707652244566,-500.0,0.00019452,2]
[313740682,1707652244578,-500.0,0.00019452,2]
[313740683,1707652244589,-385.81979695,0.00019452,2]
[313740684,1707652244601,-500.0,0.00019452,2]
[313740685,1707652244612,-500.0,0.00019452,2]
[313740686,1707652244625,-1802.97,0.00019452,2]
[313740687,1707652244636,-341.1449097,0.00019452,2]
[313740688,1707652244648,-500.0,0.00019452,2]
[313740689,1707652244659,-500.0,0.00019452,2]
[313740690,1707652244671,-500.0,0.00019452,2]
[313740691,1707652244681,-337.65468148,0.00019452,2]
[313740692,1707652244691,-500.0,0.00019452,2]
[313740693,1707652244702,-331.88165347,0.00019452,2]
[313740694,1707652244715,-151.0,0.00019452,2]
[313740695,1707652244726,-500.0,0.00019452,2]
[313740696,1707652244736,-500.0,0.00019452,2]
[313740697,1707652244747,-500.0,0.00019452,2]
[313740698,1707652244759,-500.0,0.00019452,2]
[313740699,1707652244769,-1105.02,0.00019452,2]
[313740700,1707652244780,-500.0,0.00019452,2]
[313740701,1707652244791,-500.0,0.00019452,2]
[313740702,1707652244803,-500.0,0.00019452,2]
[313740703,1707652244814,-500.0,0.00019452,2]
[313740704,1707652244825,-500.0,0.00019452,2]
[313740705,1707652244835,-1175.59,0.00019452,2]
[313740706,1707652244845,-614.33565916,0.00019452,2]
[313740707,1707652244855,-500.0,0.00019452,2]
[313740708,1707652244867,-6895.8,0.00019452,2]
[313740709,1707652244880,-1638.76,0.00019452,2]
[313740710,1707652244892,-1825.56,0.00019452,2]
[313740711,1707652244903,-500.0,0.00019452,2]
[313740712,1707652244916,-997.97,0.00019452,2]
[313740713,1707652244926,-14695.71,0.00019452,2]
[313740714,1707652244937,-1403.2,0.00019452,2]
[313740715,1707652244949,-500.0,0.00019452,2]
[313740716,1707652244958,-1710.53,0.00019452,2]
[313740717,1707652244970,-500.0,0.00019452,2]
[313740718,1707652244981,-500.0,0.00019452,2]
[313740719,1707652244991,-6662.75,0.00019452,2]
[313740720,1707652245003,-843.64,0.00019452,2]
[313740721,1707652245014,-7784.65,0.00019452,2]
[313740722,1707652245026,-904.49,0.00019452,2]
[313740723,1707652245037,-500.0,0.00019452,2]
[313740724,1707652245049,-782.31,0.00019452,2]
[313740725,1707652245061,-500.0,0.00019452,2]
[313740726,1707652245072,-1084.04,0.00019452,2]
[313740727,1707652245083,-820.86,0.00019452,2]
[313740728,1707652245095,-6792.0,0.00019452,2]
[313740729,1707652245104,-1570.5,0.00019452,2]
[313740730,1707652245114,-500.0,0.00019452,2]
[313740731,1707652245123,-4328.91,0.00019452,2]
[313740732,1707652245133,-6542.75948647,0.00019452,2]
[313740759,1707652647271,252.85368631,0.000181,4]
[313740830,1707653432184,-154.87609912,0.00016099,2]
[313740832,1707653432193,-3391.51831583,0.00016099,2]
[313740834,1707653432203,-743.626666,0.000161,2]
[313740835,1707653432212,-273.40309853,0.000165,2]
[313740837,1707653432222,-640.83624213,0.00016612,2]
[313740839,1707653432231,-405.47105587,0.00016612,2]
[313740840,1707653432243,-132.19811957,0.00016612,2]
[313740841,1707653432251,-177.41492674,0.00016616,2]
[313740876,1707653438345,-320.29928326,0.00016616,2]
[313740878,1707653438354,-2606.87462725,0.00017036,2]
[313740880,1707653438363,-199.81071776,0.00017037,2]
[313740882,1707653438373,-682.65362209,0.00017037,2]
[313740885,1707653438384,-3838.04475063,0.00017037,2]
[313741183,1707653441753,-1861.10984606,0.00016615,2]
[313741185,1707653441762,-924.71015394,0.00017037,2]
[313741344,1707653443240,-644.74394356,0.00017037,2]
[313741346,1707653443249,-2636.22557795,0.00017038,2]
[313741353,1707653443304,-4261.0,0.00017038,2]
[313741355,1707653443316,-18002.77442205,0.00017038,2]
[313741357,1707653443325,-665.6173536,0.00017039,2]
[313741359,1707653443334,-2648.1118862,0.00017051,2]
[313741361,1707653443343,-16828.06592375,0.00017273,2]
[313741364,1707653443355,-3366.10128099,0.00017273,2]
[313741654,1707653446295,-719.79,0.00014381,2]
[313741727,1707654324509,1757.99241626,0.00012346,3]
[313741730,1707654505506,24900.0,0.00010339,2]
[313741743,1707654538780,344.261846,0.00010339,2]
[313741747,1707654546147,622.91501277,0.00010339,2]
[313741749,1707654548265,1097.49939767,0.00010339,2]
[313741750,1707654548328,-537.66917544,0.00011026,2]
[313741751,1707654548348,-1861.10984606,0.00011027,2]
[313741752,1707654548368,-1746.80219385,0.00011027,2]
[313741753,1707654548387,-640.83624213,0.00011028,2]
[313741754,1707654548407,-3715.30488637,0.00011028,2]
[313741759,1707654549505,684.57537708,0.00010339,2]
[313741760,1707654550778,344.261846,0.00010339,2]
[313741765,1707654562130,706.0491676,0.00010339,2]
[313741767,1707654564080,1097.49939767,0.00010339,2]
[313741769,1707654568776,344.261846,0.00010339,2]
[313741772,1707654569387,684.57537708,0.00010339,2]
[313741779,1707654582080,350.43895518,0.00010339,2]
[313741780,1707654585391,684.57537708,0.00010339,2]
[313741781,1707654590784,344.261846,0.00010339,2]
[313741784,1707654607394,684.57537708,0.00010339,2]
[313741785,1707654610782,190.34380264,0.00010339,2]
[313741786,1707654627396,684.57537708,0.00010339,2]
[313741835,1707654635014,-481.83793258,0.00011024,2]
[313741837,1707654635023,-6113.4447999,0.00011024,2]
[313741839,1707654635034,-2607.82045622,0.00011025,2]
[313741841,1707654635044,-17255.14251511,0.00011028,2]
[313741843,1707654635053,-380.9754919,0.00011031,2]
[313741845,1707654635063,-430.73070326,0.00011345,2]
[313742056,1707654640148,-382.83768154,0.00011345,2]
[313742058,1707654640159,-686.8990302,0.00011535,2]
[313742060,1707654640168,-200.0,0.00012128,2]
[313742062,1707654640178,-280.0,0.0001334,2]
[313742064,1707654640187,-248.857105,0.00013699,2]
[313742066,1707654640196,-1964.294613,0.00013699,2]
[313742068,1707654640205,-250.0,0.00014149,2]
[313742070,1707654640215,-2524.66055593,0.00014376,2]
[313742072,1707654640226,-1425.92493946,0.0001438,2]
[313742074,1707654640235,-19064.06684237,0.00014381,2]
[313742076,1707654640244,-391.0,0.00014674,2]
[313742078,1707654640254,-200.0,0.00016142,2]
[313742080,1707654640263,-348.0,0.00016142,2]
[313742083,1707654640272,-273.40309853,0.000165,2]
[313742085,1707654640281,-246.17517237,0.00016513,2]
[313742086,1707654640290,-981.02470086,0.00017258,2]
[313742089,1707654640299,-200.0,0.00017756,2]
[313742091,1707654640309,-200.0,0.00017756,2]
[313742093,1707654640318,-368.0,0.00017756,2]
[313742095,1707654640327,-155.5438649,0.00017882,2]
[313742097,1707654640336,-153.0,0.00017882,2]
[313742099,1707654640346,-537.66917544,0.00018172,2]
[313742101,1707654640356,-2733.35859069,0.00018173,2]
[313742102,1707654640365,-153.0,0.00018493,2]
[313742104,1707654640374,-451.3786375,0.00018493,2]
[313742106,1707654640383,-153.0,0.00018493,2]
[313742108,1707654640392,-182.0478613,0.00018493,2]
[313742111,1707654640401,-153.0,0.00018493,2]
[313742113,1707654640411,-154.6104457,0.00018493,2]
[313742115,1707654640420,-153.0,0.00018493,2]
[313742117,1707654640429,-153.0,0.00018493,2]
[313742119,1707654640438,-153.0,0.00018493,2]
[313742120,1707654640447,-153.0,0.00018493,2]
[313742122,1707654640456,-153.0,0.00018493,2]
[313742124,1707654640465,-153.0,0.00018493,2]
[313742126,1707654640474,-200.079134,0.00018493,2]
[313742128,1707654640484,-153.0,0.00018493,2]
[313742131,1707654640494,-153.0,0.00018741,2]
[313742133,1707654640503,-1563.53176598,0.000189,2]
[313742136,1707654640512,-9610.96186808,0.00019,2]
[313742138,1707654640521,-1000.0,0.00019,19]
[313742140,1707654640530,-11378.36588454,0.00019069,2]
[313742142,1707654640539,-815.4,0.00019167,3]
[313742145,1707654640548,-679.5,0.00019167,3]
[313742147,1707654640557,-566.25,0.00019167,3]
[313742150,1707654640566,-471.88,0.00019167,3]
[313742152,1707654640576,-393.23,0.00019167,3]
[313742154,1707654640584,-327.69,0.00019167,3]
[313742173,1707654640747,-273.08,0.00019167,3]
[313742176,1707654640757,-227.57,0.00019167,3]
[313742178,1707654640766,-189.64,0.00019167,3]
[313742180,1707654640775,-158.03,0.00019167,3]
[313742182,1707654640784,-790.18,0.00019167,3]
[313742184,1707654640794,-261.96036367,0.00019175,2]
[313742185,1707654640803,-323.84552651,0.00019175,2]
[313742187,1707654640812,-155.29086078,0.00019175,2]
[313742189,1707654640822,-181.61100377,0.00019175,2]
[313742191,1707654640831,-609.9899794,0.00019175,2]
[313742193,1707654640841,-512.32087978,0.00019175,2]
[313742195,1707654640850,-155.10236756,0.00019175,2]
[313742197,1707654640859,-155.71733505,0.00019175,2]
[313742200,1707654640868,-2405.8173328,0.00019175,2]
[313742201,1707654640878,-1687.90304115,0.00019175,2]
[313742203,1707654640887,-155.46073014,0.00019175,2]
[313742205,1707654640896,-199.74590618,0.00019175,2]
[313742207,1707654640905,-590.26002597,0.00019175,2]
[313742210,1707654640915,-3550.52932006,0.00019175,2]
[313742212,1707654640924,-1513.50493742,0.00019175,2]
[313742214,1707654640934,-634.58046785,0.00019175,2]
[313742216,1707654640943,-302.46148739,0.00019176,2]
[313742218,1707654640952,-1856.93885306,0.00019176,2]
[313742220,1707654640962,-718.09402856,0.00019176,2]
[313742221,1707654640971,-100554.8384185,0.00019177,2]
[313742224,1707654640982,-418.45057124,0.00019178,2]
[313742225,1707654640994,-500.0,0.00019178,2]
[313742227,1707654641004,-500.0,0.00019178,2]
[313742230,1707654641014,-500.0,0.00019178,2]
[313742232,1707654641024,-500.0,0.00019178,2]
[313742234,1707654641034,-500.0,0.00019178,2]
[313742236,1707654641044,-500.0,0.00019178,2]
[313742238,1707654641054,-717.12,0.00019178,2]
[313742240,1707654641064,-500.0,0.00019178,2]
[313742242,1707654641073,-500.0,0.00019178,2]
[313742244,1707654641082,-691.62,0.00019178,2]
[313742246,1707654641092,-534.81741702,0.00019178,2]
[313742248,1707654641102,-500.0,0.00019178,2]
[313742250,1707654641111,-500.0,0.00019178,2]
[313742252,1707654641120,-500.0,0.00019178,2]
[313742253,1707654641130,-1652.72,0.00019178,2]
[313742256,1707654641139,-500.0,0.00019178,2]
[313742257,1707654641148,-500.0,0.00019178,2]
[313742259,1707654641159,-370.86420449,0.00019178,2]
[313742262,1707654641169,-709.59,0.00019178,2]
[313742264,1707654641178,-151.0,0.00019178,2]
[313742265,1707654641187,-503.26211495,0.00019178,2]
[313742268,1707654641197,-1565.32,0.00019178,2]
[313742270,1707654641206,-500.0,0.00019178,2]
[313742272,1707654641216,-1012.93,0.00019178,2]
[313742274,1707654641225,-500.0,0.00019178,2]
[313742276,1707654641235,-673.51,0.00019178,2]
[313742278,1707654641244,-500.0,0.00019178,2]
[313742280,1707654641253,-500.0,0.00019178,2]
[313742282,1707654641262,-500.0,0.00019178,2]
[313742284,1707654641271,-500.0,0.00019178,2]
[313742286,1707654641280,-1286.27,0.00019178,2]
[313742288,1707654641289,-1502.19,0.00019178,2]
[313742290,1707654641298,-216.88644087,0.00019178,2]
[313742292,1707654641307,-914.81,0.00019178,2]
[313742294,1707654641317,-500.0,0.00019178,2]
[313742296,1707654641326,-6321.15,0.00019178,2]
[313742298,1707654641335,-1567.99,0.00019178,2]
[313742299,1707654641345,-13471.07,0.00019178,2]
[313742302,1707654641354,-7135.93,0.00019178,2]
[313742304,1707654641363,-500.0,0.00019178,2]
[313742306,1707654641372,-500.0,0.00019178,2]
[313742307,1707654641381,-500.0,0.00019178,2]
[313742309,1707654641390,-829.12,0.00019178,2]
[313742311,1707654641399,-6226.0,0.00019178,2]
[313742314,1707654641409,-500.0,0.00019178,2]
[313742315,1707654641418,-1439.62,0.00019178,2]
[313742317,1707654641428,-6133.25,0.00019178,2]
[313742319,1707654641437,-500.0,0.00019178,2]
[313742322,1707654641447,-500.0,0.00019178,2]
[313742323,1707654641456,-773.34,0.00019178,2]
[313742325,1707654641465,-6023.65,0.00019178,2]
[313742327,1707654641475,-752.46,0.00019178,2]
[313742329,1707654641484,-500.0,0.00019178,2]
[313742331,1707654641493,-1058.67,0.00019178,2]
[313742333,1707654641502,-579.65,0.00019178,2]
[313742336,1707654641512,-3968.17,0.00019178,2]
[313742338,1707654641521,-500.0,0.00019178,2]
[313742340,1707654641531,-5352.7,0.00019178,2]
[313742342,1707654641540,-500.0,0.00019178,2]
[313742344,1707654641549,-811.55,0.00019178,2]
[313742346,1707654641558,-1724.64,0.00019178,2]
[313742348,1707654641568,-537.90407633,0.00019178,2]
[313742350,1707654641577,-751.82,0.00019178,2]
[313742351,1707654641587,-1673.43,0.00019178,2]
[313742353,1707654641596,-168.236473,0.00019178,2]
[313742355,1707654641606,-169.9793261,0.00019178,2]
[313742357,1707654641615,-169.025814,0.00019178,2]
[313742359,1707654641624,-169.96751,0.00019178,2]
[313742361,1707654641633,-153.0,0.00019315,2]
[313742363,1707654641643,-153.0,0.00019315,2]
[313742365,1707654641652,-153.0,0.00019315,2]
[313742368,1707654641662,-153.0,0.00019315,2]
[313742369,1707654641671,-153.0,0.00019315,2]
[313742371,1707654641681,-200.079134,0.00019315,2]
[313742374,1707654641690,-153.0,0.00019315,2]
[313742375,1707654641699,-153.0,0.00019315,2]
[313742377,1707654641708,-200.079134,0.00019315,2]
[313742379,1707654641718,-153.0,0.00019315,2]
[313742381,1707654641727,-153.0,0.00019315,2]
[313742383,1707654641736,-153.0,0.00019315,2]
[313742385,1707654641746,-153.0,0.00019315,2]
[313742387,1707654641755,-153.0,0.00019315,2]
[313742389,1707654641764,-153.0,0.00019315,2]
[313742391,1707654641774,-153.0,0.00019315,2]
[313742393,1707654641783,-200.079134,0.00019315,2]
[313742395,1707654641792,-153.0,0.00019315,2]
[313742397,1707654641801,-153.0,0.00019315,2]
[313742399,1707654641810,-153.0,0.00019315,2]
[313742401,1707654641819,-153.0,0.00019315,2]
[313742403,1707654641828,-200.079134,0.00019315,2]
[313742405,1707654641837,-153.0,0.00019315,2]
[313742407,1707654641847,-153.0,0.00019315,2]
[313742409,1707654641856,-153.0,0.00019315,2]
[313742411,1707654641865,-153.0,0.00019315,2]
[313742413,1707654641874,-200.079134,0.00019315,2]
[313742415,1707654641884,-153.0,0.00019315,2]
[313742417,1707654641892,-153.0,0.00019315,2]
[313742419,1707654641901,-153.0,0.00019315,2]
[313742421,1707654641911,-153.0,0.00019315,2]
[313742423,1707654641920,-153.0,0.00019315,2]
[313742425,1707654641929,-153.0,0.00019315,2]
[313742427,1707654641938,-200.079134,0.00019315,2]
[313742429,1707654641947,-153.0,0.00019315,2]
[313742431,1707654641956,-153.0,0.00019315,2]
[313742433,1707654641966,-153.0,0.00019315,2]
[313742435,1707654641975,-153.0,0.00019315,2]
[313742437,1707654641987,-200.079134,0.00019315,2]
[313742439,1707654642001,-153.0,0.00019315,2]
[313742441,1707654642011,-153.0,0.00019315,2]
[313742443,1707654642020,-306.0,0.00019315,2]
[313742445,1707654642030,-153.0,0.00019315,2]
[313742447,1707654642039,-200.079134,0.00019315,2]
[313742449,1707654642048,-153.0,0.00019315,2]
[313742451,1707654642057,-405.8446631,0.00019315,2]
[313742453,1707654642069,-326.2068265,0.00019315,2]
[313742456,1707654642078,-153.0,0.00019315,2]
[313742457,1707654642087,-200.079134,0.00019315,2]
[313742459,1707654642097,-153.0,0.00019315,2]
[313742461,1707654642107,-200.079134,0.00019315,2]
[313742463,1707654642116,-200.079134,0.00019315,2]
[313742466,1707654642125,-200.079134,0.00019315,2]
[313742468,1707654642135,-747.40963446,0.00019352,2]
[313742470,1707654642144,-200.0,0.00019452,2]
[313742471,1707654642153,-3813.65772805,0.00019452,2]
[313742473,1707654642163,-155.02015262,0.00019452,2]
[313742475,1707654642172,-500.0,0.00019452,2]
[313742477,1707654642181,-500.0,0.00019452,2]
[313742479,1707654642190,-500.0,0.00019452,2]
[313742481,1707654642199,-500.0,0.00019452,2]
[313742483,1707654642208,-500.0,0.00019452,2]
[313742485,1707654642218,-500.0,0.00019452,2]
[313742487,1707654642227,-717.12,0.00019452,2]
[313742489,1707654642237,-500.0,0.00019452,2]
[313742492,1707654642246,-500.0,0.00019452,2]
[313742493,1707654642255,-691.62,0.00019452,2]
[313742495,1707654642264,-500.0,0.00019452,2]
[313742497,1707654642273,-500.0,0.00019452,2]
[313742499,1707654642282,-500.0,0.00019452,2]
[313742501,1707654642292,-1652.72,0.00019452,2]
[313742503,1707654642301,-500.0,0.00019452,2]
[313742506,1707654642310,-500.0,0.00019452,2]
[313742507,1707654642319,-709.59,0.00019452,2]
[313742509,1707654642330,-1565.32,0.00019452,2]
[313742511,1707654642338,-1012.93,0.00019452,2]
[313742514,1707654642348,-500.0,0.00019452,2]
[313742516,1707654642357,-673.51,0.00019452,2]
[313742518,1707654642366,-500.0,0.00019452,2]
[313742520,1707654642375,-500.0,0.00019452,2]
[313742522,1707654642385,-500.0,0.00019452,2]
[313742524,1707654642394,-500.0,0.00019452,2]
[313742525,1707654642403,-1286.27,0.00019452,2]
[313742528,1707654642413,-1502.19,0.00019452,2]
[313742529,1707654642422,-914.81,0.00019452,2]
[313742532,1707654642431,-578.79304877,0.00019452,2]
[313742533,1707654642440,-6321.15,0.00019452,2]
[313742535,1707654642449,-1567.99,0.00019452,2]
[313742537,1707654642458,-13471.07,0.00019452,2]
[313742539,1707654642468,-7135.93,0.00019452,2]
[313742541,1707654642477,-500.0,0.00019452,2]
[313742543,1707654642486,-500.0,0.00019452,2]
[313742546,1707654642496,-500.0,0.00019452,2]
[313742547,1707654642505,-829.12,0.00019452,2]
[313742549,1707654642515,-6226.0,0.00019452,2]
[313742551,1707654642524,-500.0,0.00019452,2]
[313742553,1707654642533,-1439.62,0.00019452,2]
[313742555,1707654642542,-6133.25,0.00019452,2]
[313742557,1707654642551,-500.0,0.00019452,2]
[313742559,1707654642560,-500.0,0.00019452,2]
[313742562,1707654642570,-773.34,0.00019452,2]
[313742564,1707654642579,-6023.65,0.00019452,2]
[313742565,1707654642588,-752.46,0.00019452,2]
[313742568,1707654642598,-1058.67,0.00019452,2]
[313742570,1707654642607,-579.65,0.00019452,2]
[313742571,1707654642616,-3968.17,0.00019452,2]
[313742573,1707654642625,-500.0,0.00019452,2]
[313742576,1707654642635,-5352.7,0.00019452,2]
[313742578,1707654642644,-500.0,0.00019452,2]
[313742579,1707654642653,-811.55,0.00019452,2]
[313742581,1707654642662,-1724.64,0.00019452,2]
[313742583,1707654642671,-751.82,0.00019452,2]
[313742585,1707654642679,-1673.43,0.00019452,2]
[313742587,1707654642688,-1115.58268575,0.000195,2]
[313742589,1707654642697,-200.0,0.00019532,2]
[313742591,1707654642706,-200.0,0.00019532,2]
[313742593,1707654642715,-200.0,0.00019532,2]
[313742595,1707654642724,-200.0,0.00019532,2]
[313742597,1707654642734,-275.0,0.00019532,2]
[313742599,1707654642743,-640.31127374,0.00019711,2]
[313742601,1707654642752,-5568.48,0.00019726,2]
[313742603,1707654642760,-500.0,0.00019726,2]
[313742605,1707654642769,-500.0,0.00019726,2]
[313742607,1707654642778,-500.0,0.00019726,2]
[313742610,1707654642787,-500.0,0.00019726,2]
[313742612,1707654642797,-500.0,0.00019726,2]
[313742614,1707654642806,-717.12,0.00019726,2]
[313742616,1707654642815,-500.0,0.00019726,2]
[313742618,1707654642824,-500.0,0.00019726,2]
[313742620,1707654642833,-691.62,0.00019726,2]
[313742622,1707654642843,-500.0,0.00019726,2]
[313742624,1707654642852,-500.0,0.00019726,2]
[313742626,1707654642861,-500.0,0.00019726,2]
[313742628,1707654642871,-1652.72,0.00019726,2]
[313742630,1707654642879,-551.6521,0.00019726,2]
[313742632,1707654642889,-500.0,0.00019726,2]
[313742634,1707654642898,-709.59,0.00019726,2]
[313742637,1707654642907,-1565.32,0.00019726,2]
[313742640,1707654642916,-1012.93,0.00019726,2]
[313742643,1707654642925,-500.0,0.00019726,2]
[313742646,1707654642934,-673.51,0.00019726,2]
[313742649,1707654642943,-500.0,0.00019726,2]
[313742653,1707654642953,-500.0,0.00019726,2]
[313742658,1707654642962,-500.0,0.00019726,2]
[313742661,1707654642971,-500.0,0.00019726,2]
[313742664,1707654642980,-1286.27,0.00019726,2]
[313742666,1707654642992,-1502.19,0.00019726,2]
[313742668,1707654643001,-914.81,0.00019726,2]
[313742670,1707654643010,-6321.15,0.00019726,2]
[313742672,1707654643019,-1567.99,0.00019726,2]
[313742675,1707654643030,-13471.07,0.00019726,2]
[313742678,1707654643039,-7135.93,0.00019726,2]
[313742681,1707654643048,-500.0,0.00019726,2]
[313742683,1707654643057,-500.0,0.00019726,2]
[313742685,1707654643069,-500.0,0.00019726,2]
[313742689,1707654643079,-829.12,0.00019726,2]
[313742691,1707654643088,-6226.0,0.00019726,2]
[313742693,1707654643098,-500.0,0.00019726,2]
[313742694,1707654643107,-1439.62,0.00019726,2]
[313742696,1707654643116,-6133.25,0.00019726,2]
[313742699,1707654643125,-500.0,0.00019726,2]
[313742701,1707654643134,-500.0,0.00019726,2]
[313742703,1707654643143,-773.34,0.00019726,2]
[313742705,1707654643152,-6023.65,0.00019726,2]
[313742707,1707654643161,-752.46,0.00019726,2]
[313742709,1707654643207,-1058.67,0.00019726,2]
[313742712,1707654643216,-579.65,0.00019726,2]
[313742715,1707654643225,-3968.17,0.00019726,2]
[313742717,1707654643235,-500.0,0.00019726,2]
[313742720,1707654643244,-5352.7,0.00019726,2]
[313742722,1707654643253,-500.0,0.00019726,2]
[313742724,1707654643262,-811.55,0.00019726,2]
[313742726,1707654643271,-1724.64,0.00019726,2]
[313742728,1707654643280,-751.82,0.00019726,2]
[313742730,1707654643289,-1673.43,0.00019726,2]
[313742732,1707654643298,-151.0,0.00019831,2]
[313742734,1707654643307,-324.25284351,0.0002,2]
[313742736,1707654643316,-681.3383372,0.0002,2]
[313742738,1707654643325,-1202.57082301,0.0002,2]
[313742740,1707654643334,-500.0,0.0002,2]
[313742742,1707654643343,-5568.48,0.0002,2]
[313742744,1707654643352,-6304.53229004,0.0002,2]
[313742746,1707654643361,-10927.0,0.0002,2]
[313742748,1707654643370,-453.78869565,0.0002,2]
[313742750,1707654643379,-74238.21645269,0.0002,2]
[313742752,1707654643388,-155.73915057,0.0002,2]
[313742753,1707654643397,-2000.0,0.0002,2]
[313742755,1707654643406,-155.41599408,0.0002,2]
[313742758,1707654643415,-155.25013232,0.0002,2]
[313742760,1707654643424,-500.0,0.0002,2]